bitfinex/quotes_ETHUSD_20230111
["timestamp","ask_amount","ask_price","bid_price","bid_amount"]
[1673470131288,8.76025317,1341.9,1341.8,0.07060585]
[1673470132411,1.30813317,1341.9,1341.8,0.07060585]
[1673470138486,8.76025317,1341.9,1341.8,0.07060585]
[1673470138696,16.21237317,1341.9,1341.8,0.07060585]
[1673470139265,8.76025317,1341.9,1341.8,0.07060585]
[1673470140102,1.30813317,1341.9,1341.8,0.07060585]
[1673470140560,0.11113317,1341.9,1341.8,0.07060585]
[1673470140885,17.91639167,1342.0,1341.8,0.07060585]
[1673470141290,25.36815167,1342.0,1341.8,0.07060585]
[1673470142478,17.91639167,1342.0,1341.8,0.07060585]
[1673470142836,17.91648167,1342.0,1341.8,0.07060585]
[1673470143256,10.46483167,1342.0,1341.8,0.07060585]
[1673470143468,12.95717979,1342.0,1341.8,22.42861585]
[1673470143723,12.95717979,1342.0,1341.8,22.49561585]
[1673470143881,12.95717979,1342.0,1341.8,15.04294585]
[1673470144422,11.84584812,1342.0,1341.8,22.49561585]
[1673470144982,11.84584812,1342.0,1341.8,15.04294585]
[1673470144983,12.95717979,1342.0,1341.8,15.04294585]
[1673470145305,11.84584812,1342.0,1341.8,15.04294585]
[1673470145465,9.3535,1342.0,1341.8,0.13760585]
[1673470145672,9.3535,1342.0,1341.8,0.07060585]
[1673470147146,10.46483167,1342.0,1341.8,7.52322585]
[1673470147398,10.46483167,1342.0,1341.8,7.59022585]
[1673470147577,10.46483167,1342.0,1341.8,0.13760585]
[1673470147787,10.46483167,1342.0,1341.8,0.07060585]
[1673470147994,10.46483167,1342.0,1341.8,2.77520938]
[1673470148229,10.46483167,1342.0,1341.8,10.22780938]
[1673470148435,10.46483167,1342.0,1341.8,10.29480938]
[1673470148627,10.46483167,1342.0,1341.8,2.84220938]
[1673470148825,17.91640167,1342.0,1341.8,3.89016881]
[1673470149040,16.80507,1342.0,1341.9,1.8487098]
[1673470149249,9.3535,1342.0,1341.9,1.8487098]
[1673470149502,2.85541971,1342.1,1342.0,0.00237031]
[1673470149735,5.78941971,1342.1,1342.0,0.00237031]
[1673470150086,13.24041971,1342.1,1342.0,0.00237031]
[1673470152017,11.57591507,1342.1,1342.0,0.00237031]
[1673470152345,11.57791507,1342.1,1342.0,0.00237031]
[1673470152557,1.12491507,1342.1,1342.0,0.00237031]
[1673470152778,1.11133167,1342.1,1342.0,0.00237031]
[1673470152991,22.08723167,1342.2,1342.1,1.11133166]
[1673470153298,10.85101631,1342.3,1342.1,1.11133166]
[1673470153455,2.0,1342.2,1342.1,1.11133166]
[1673470153916,3.11133167,1342.2,1342.1,1.11133166]
[1673470154351,2.002,1342.2,1342.1,1.11133166]
[1673470154659,18.30129631,1342.3,1342.1,1.10814401]
[1673470154897,1.11133167,1342.2,1342.1,1.10814401]
[1673470155200,8.56178167,1342.2,1342.1,1.10814401]
[1673470155818,23.46268167,1342.2,1342.1,1.10814401]
[1673470158027,25.12718631,1342.2,1342.1,1.10814401]
[1673470169821,17.67673631,1342.2,1342.1,1.10814401]
[1673470169976,21.6635592,1342.2,1342.1,1.10814401]
[1673470170342,6.7626592,1342.2,1342.1,1.10814401]
[1673470170532,1.11133167,1342.2,1342.1,1.10814401]
[1673470171070,2.77583631,1342.2,1342.1,1.10814401]
[1673470171464,10.22628631,1342.2,1342.1,1.10814401]
[1673470171653,2.77583631,1342.2,1342.1,1.10814401]
[1673470172705,1.11133167,1342.2,1342.1,1.10814401]
[1673470174304,8.56178167,1342.2,1342.1,1.10814401]
[1673470174468,16.01223167,1342.2,1342.1,1.10814401]
[1673470174892,26.42701373,1342.2,1342.1,1.10814401]
[1673470176608,28.09151837,1342.2,1342.1,1.10814401]
[1673470177972,26.9801867,1342.2,1342.1,1.10814401]
[1673470178911,29.19918757,1342.2,1342.1,1.10415917]
[1673470182277,21.74873757,1342.2,1342.1,1.10415917]
[1673470182558,19.5297367,1342.2,1342.1,1.10415917]
[1673470182904,21.74873757,1342.2,1342.1,1.10415917]
[1673470183850,12.0792867,1342.2,1342.1,1.10415917]
[1673470184082,11.33395551,1342.2,1342.1,1.10415917]
[1673470184417,2.77973285,1342.2,1342.1,1.10415917]
[1673470184634,1.11522821,1342.2,1342.1,1.10415917]
[1673470184791,1.11522821,1342.2,1342.1,8.55515917]
[1673470184976,1.11522821,1342.2,1342.1,8.62215917]
[1673470185223,1.11522821,1342.2,1342.1,1.17115917]
[1673470185480,2.77973285,1342.2,1342.1,1.10415917]
[1673470187212,1.66450464,1342.2,1342.1,1.10415917]
[1673470187466,2.78009428,1342.2,1342.1,8.55515917]
[1673470187677,2.78009428,1342.2,1342.1,1.17115917]
[1673470187853,2.78009428,1342.2,1342.1,1.10415917]
[1673470190193,2.78019033,1342.2,1342.1,1.10415917]
[1673470190716,1.66450464,1342.2,1342.1,1.10415917]
[1673470191775,3.88350551,1342.2,1342.1,1.10415917]
[1673470192108,11.33395551,1342.2,1342.1,1.10415917]
[1673470192610,18.78440551,1342.2,1342.1,1.10415917]
[1673470193685,2.78053614,1342.2,1342.1,1.10415917]
[1673470193893,2.78053607,1342.2,1342.1,1.10415917]
[1673470194817,1.11603143,1342.2,1342.1,27.02473075]
[1673470194991,1.11603143,1342.2,1342.1,7.51163915]
[1673470195225,2.78053607,1342.2,1342.1,2.89026806]
[1673470195436,2.78053607,1342.2,1342.1,1.10415917]
[1673470198405,1.11603143,1342.2,1342.1,2.95259345]
[1673470198611,1.11603143,1342.2,1342.1,10.40359345]
[1673470198850,1.11603143,1342.2,1342.1,3.01559345]
[1673470199157,1.11603143,1342.2,1342.1,2.95259345]
[1673470199799,1.11603143,1342.2,1342.1,1.10415917]
[1673470200119,2.78053607,1342.2,1342.1,1.10415917]
[1673470200450,6.90255803,1342.2,1342.1,1.10415917]
[1673470200591,31.30301123,1342.2,1342.1,1.10415917]
[1673470200807,31.30301123,1342.2,1342.0,0.00237031]
[1673470200808,33.111671,1342.2,1342.0,0.00237031]
[1673470201128,11.95378962,1342.1,1342.0,0.00237031]
[1673470201361,20.45045026,1342.1,1342.0,0.00237031]
[1673470201536,50.18333965,1342.1,1342.0,0.00237031]
[1673470201993,45.81740952,1342.1,1342.0,0.00237031]
[1673470202412,48.04824866,1342.1,1342.0,0.00237031]
[1673470202629,29.19491732,1342.1,1342.0,0.00237031]
[1673470202849,10.45873914,1342.1,1342.0,0.00237031]
[1673470203070,28.14925668,1342.1,1342.0,0.00237031]
[1673470203225,35.60025668,1342.1,1342.0,0.00237031]
[1673470203429,5.57825668,1342.1,1342.0,0.00237031]
[1673470203770,4.46241788,1342.1,1342.0,0.00237031]
[1673470204010,14.91341788,1342.1,1342.0,0.00237031]
[1673470204197,7.46241788,1342.1,1342.0,0.00237031]
[1673470204609,13.24073914,1342.1,1342.0,0.00237031]
[1673470204789,18.24043981,1342.1,1342.0,0.00237031]
[1673470205007,25.69143981,1342.1,1342.0,0.00237031]
[1673470205548,34.81522112,1342.1,1342.0,0.00237031]
[1673470206307,33.14243981,1342.1,1342.0,0.00237031]
[1673470206533,33.14243981,1342.1,1341.8,0.07060585]
[1673470206670,2.78779548,1342.0,1341.8,0.07060585]
[1673470207046,10.23957548,1342.0,1341.8,0.07060585]
[1673470207450,17.69135548,1342.0,1341.8,0.07060585]
[1673470207825,2.78779548,1342.0,1341.8,7.52314585]
[1673470207974,2.78779548,1342.0,1341.8,2.7852233]
[1673470208304,1.11511819,1342.0,1341.8,2.7182233]
[1673470208478,1.11511819,1342.0,1341.8,7.52314585]
[1673470208683,1.11511819,1342.0,1341.8,7.59014585]
[1673470208917,10.23882548,1342.1,1341.8,16.15777528]
[1673470209154,1.11511819,1342.1,1341.9,1.84865235]
[1673470209346,2.78779548,1342.1,1341.8,25.26839425]
[1673470209551,1.25378004,1342.1,1341.9,4.3754945]
[1673470209883,1.25378004,1342.1,1341.9,2.52683943]
[1673470210683,1.25378004,1342.1,1341.9,9.97878943]
[1673470210888,10.37760733,1342.1,1341.9,2.59383943]
[1673470211101,1.11511819,1342.0,1341.8,15.04258585]
[1673470212080,1.11511819,1342.0,1341.8,7.59004585]
[1673470212234,1.11511819,1342.0,1341.8,7.59027585]
[1673470213435,1.11511819,1342.0,1341.8,15.04294585]
[1673470213593,1.11511819,1342.0,1341.8,26.0541113]
[1673470214009,1.11511819,1342.0,1341.8,18.6014413]
[1673470214481,1.11511819,1342.0,1341.8,0.13760585]
[1673470214693,16.01830819,1342.0,1341.8,0.07060585]
[1673470214910,25.14261548,1342.0,1341.8,0.07060585]
[1673470215274,1.11511819,1341.9,1341.8,0.07060585]
[1673470215604,11.56723819,1341.9,1341.8,0.07060585]
[1673470216269,1.11511819,1341.9,1341.8,0.07060585]
[1673470217182,8.56723819,1341.9,1341.8,0.07060585]
[1673470217395,7.45212,1341.9,1341.8,0.07060585]
[1673470217817,35.08404733,1342.0,1341.8,0.07060585]
[1673470218039,39.71720798,1342.0,1341.8,0.07060585]
[1673470218433,2.5,1341.9,1341.8,0.07060585]
[1673470218749,11.06723819,1341.9,1341.8,0.07060585]
[1673470218954,17.40424,1341.9,1341.8,0.07060585]
[1673470219198,9.95212,1341.9,1341.8,0.07060585]
[1673470219386,8.63175041,1341.9,1341.8,0.07060585]
[1673470220209,1.17963041,1341.9,1341.8,0.07060585]
[1673470221279,12.59029548,1342.0,1341.8,0.07060585]
[1673470221506,27.42748548,1342.0,1341.8,0.07060585]
[1673470221720,27.56615332,1342.0,1341.8,0.07060585]
[1673470222531,35.01778332,1342.0,1341.8,0.07060585]
[1673470223209,27.56615332,1342.0,1341.8,0.07060585]
[1673470223434,13.20873533,1341.9,1341.8,0.07060585]
[1673470223577,10.20873533,1341.9,1341.8,0.07060585]
[1673470224362,2.75661533,1341.9,1341.8,0.07060585]
[1673470224538,35.08409531,1342.0,1341.8,0.07060585]
[1673470224756,35.01809531,1342.0,1341.8,0.07060585]
[1673470224975,35.01809531,1342.0,1341.8,0.06790671]
[1673470226550,27.56615531,1342.0,1341.8,0.06790671]
[1673470228146,27.42748548,1342.0,1341.8,0.06790671]
[1673470228336,27.56615531,1342.0,1341.8,0.06790671]
[1673470228759,3.61511819,1341.9,1341.8,0.06790671]
[1673470229592,1.11511819,1341.9,1341.8,0.06790671]
[1673470230621,27.49369548,1342.0,1341.8,0.06790671]
[1673470230833,31.69839203,1342.0,1341.8,0.06790671]
[1673470233504,1.11511819,1341.9,1341.8,0.06790671]
[1673470234039,16.86099203,1342.0,1341.8,0.06790671]
[1673470234208,15.12231474,1342.0,1341.8,0.06790671]
[1673470234422,15.12231474,1342.0,1341.8,7.52052671]
[1673470234649,14.98564491,1342.0,1341.8,7.58452671]
[1673470234863,9.7365,1342.0,1341.8,22.49286671]
[1673470235059,10.85161819,1342.0,1341.8,15.04019671]
[1673470236241,10.85161819,1342.0,1341.8,7.58752671]
[1673470237990,12.52429548,1342.0,1341.8,7.58752671]
[1673470238638,1.11511819,1341.9,1341.8,7.58752671]
[1673470238817,1.11511819,1341.9,1341.8,0.13490671]
[1673470239030,1.11711819,1341.9,1341.8,0.06790671]
[1673470239290,1.11511819,1341.9,1341.8,0.06790671]
[1673470239447,1.11511819,1341.9,1341.8,1.91675539]
[1673470239659,1.11511819,1341.9,1341.8,0.06790671]
[1673470241914,2.78779548,1341.9,1341.8,0.06790671]
[1673470242089,2.78779548,1341.9,1341.8,7.52057671]
[1673470242294,1.11511819,1341.9,1341.8,15.04024671]
[1673470242646,1.11511819,1341.9,1341.8,0.13490671]
[1673470242856,1.11511819,1341.9,1341.8,0.06790671]
[1673470243031,1.11511819,1341.9,1341.8,7.52057671]
[1673470243380,1.11511819,1341.9,1341.8,7.58757671]
[1673470243701,1.11511819,1341.9,1341.8,24.34175428]
[1673470243863,12.59029548,1342.0,1341.8,24.34175428]
[1673470244078,12.52429548,1342.0,1341.8,22.49291671]
[1673470244508,12.52429548,1342.0,1341.8,15.04024671]
[1673470245697,1.11511819,1341.9,1341.8,7.58757671]
[1673470245905,1.11511819,1341.9,1341.8,9.43639126]
[1673470246741,1.11511819,1341.9,1341.8,16.88906126]
[1673470247959,1.11511819,1341.9,1341.8,24.34173126]
[1673470248413,1.11511819,1341.9,1341.8,16.88906126]
[1673470248590,11.47517729,1342.0,1341.8,16.88906126]
[1673470248591,12.59029548,1342.0,1341.8,24.34173126]
[1673470248800,12.52429548,1342.0,1341.8,22.49291671]
[1673470251771,12.52429548,1342.0,1341.8,15.04024671]
[1673470251976,2.78779548,1342.0,1341.8,18.60008917]
[1673470252223,1.11511819,1342.0,1341.9,1.84871061]
[1673470252555,1.11511819,1342.0,1341.9,9.30083061]
[1673470252726,1.11511819,1342.0,1341.9,9.36783061]
[1673470253493,1.11511819,1342.0,1341.9,1.91571061]
[1673470253705,1.11511819,1342.0,1341.9,1.84871061]
[1673470254329,1.11511819,1342.0,1341.8,19.7146386]
[1673470255967,1.11511819,1342.0,1341.9,16.75292125]
[1673470256184,1.11511819,1342.0,1341.9,9.36780125]
[1673470257055,1.11511819,1342.0,1341.9,7.51912]
[1673470261975,1.11511819,1342.0,1341.9,14.97124]
[1673470262875,1.68626069,1342.1,1341.9,16.81993556]
[1673470262876,2.80137888,1342.1,1341.9,16.81993556]
[1673470263395,1.11511819,1342.0,1341.9,16.81993556]
[1673470263567,1.11511819,1342.0,1341.9,18.66860517]
[1673470264784,1.11511819,1342.0,1341.9,9.36781556]
[1673470265094,1.11511819,1342.0,1341.9,1.91569556]
[1673470265250,1.11511819,1342.0,1341.9,9.30081556]
[1673470265460,1.11511819,1342.0,1341.9,1.91569556]
[1673470265667,1.11511819,1342.0,1341.9,1.84869556]
[1673470268557,2.78779548,1342.0,1341.9,1.84869556]
[1673470269034,2.78779548,1342.0,1341.9,9.30081556]
[1673470269248,2.78779548,1342.0,1341.9,9.36781556]
[1673470270850,2.78779548,1342.0,1341.9,1.91569556]
[1673470271067,2.78779548,1342.0,1341.9,1.84869556]
[1673470273081,1.11511819,1342.0,1341.9,3.69739112]
[1673470273291,4.10818626,1342.1,1341.9,6.05230228]
[1673470273292,2.84981594,1342.1,1341.9,6.05230228]
[1673470273453,11.83954712,1342.2,1342.0,1.84844873]
[1673470273662,14.00438626,1342.2,1342.0,1.84844873]
[1673470273875,14.00438626,1342.2,1342.0,9.29999873]
[1673470274131,14.00438626,1342.2,1342.0,7.51855]
[1673470274339,14.00438626,1342.2,1342.0,10.18116167]
[1673470275877,11.77354712,1342.2,1342.0,10.18116167]
[1673470276709,11.77354712,1342.2,1342.0,17.63272167]
[1673470276947,10.10086983,1342.2,1342.0,10.18116167]
[1673470277175,9.9622,1342.2,1342.0,10.18116167]
[1673470277387,32.99757729,1342.3,1342.1,1.01811617]
[1673470277599,1.8113047,1342.3,1342.1,25.219508]
[1673470277788,1.8113047,1342.3,1342.1,25.286508]
[1673470277789,1.67267729,1342.3,1342.1,25.286508]
[1673470278650,1.67267729,1342.3,1342.1,10.384508]
[1673470278839,1.67267729,1342.3,1342.1,2.933508]
[1673470279055,3.90351643,1342.3,1342.1,2.866508]
[1673470279230,1.67267729,1342.3,1342.1,10.317498]
[1673470279464,1.67267729,1342.3,1342.1,17.835498]
[1673470280322,1.67267729,1342.3,1342.1,10.384498]
[1673470281499,1.67267729,1342.3,1342.1,17.835498]
[1673470283286,2.78720502,1342.3,1342.1,17.835498]
[1673470283497,2.78720502,1342.3,1342.2,1.7835498]
[1673470283682,1.11452773,1342.3,1342.2,1.7835498]
[1673470283894,1.11452773,1342.3,1342.2,24.1348998]
[1673470284127,1.11452773,1342.3,1342.2,24.2018998]
[1673470284749,23.07167729,1342.4,1342.2,24.2018998]
[1673470284944,1.11434639,1342.3,1342.2,9.3009998]
[1673470286235,1.11434639,1342.3,1342.2,16.7514498]
[1673470286403,1.11434639,1342.3,1342.2,9.3009998]
[1673470286616,1.11434639,1342.3,1342.2,16.7514498]
[1673470286869,0.002,1342.3,1342.2,16.7484498]
[1673470287034,12.64190321,1342.4,1342.2,16.7514498]
[1673470287246,12.62790321,1342.4,1342.2,16.7514498]
[1673470287476,12.62790321,1342.4,1342.3,1.67514498]
[1673470287683,12.62790321,1342.4,1342.3,14.89978]
[1673470287905,10.95522592,1342.4,1342.3,22.41667]
[1673470288296,1.11412592,1342.4,1342.3,14.96678]
[1673470288717,1.11412592,1342.4,1342.3,22.41667]
[1673470288926,1.11377626,1342.4,1342.3,7.51689]
[1673470289143,1.11377626,1342.4,1342.3,10.10404698]
[1673470289382,1.11377626,1342.4,1342.3,2.65415698]
[1673470289591,1.11377626,1342.4,1342.2,3.5215498]
[1673470289803,1.11377626,1342.4,1342.2,3.4545498]
[1673470290029,8.56331626,1342.4,1342.2,1.671]
[1673470290186,1.11377626,1342.4,1342.2,1.671]
[1673470290400,2.78645355,1342.4,1342.2,1.671]
[1673470290614,1.11377626,1342.4,1342.2,1.671]
[1673470290825,1.11377626,1342.4,1342.2,16.57172]
[1673470291188,0.002,1342.4,1342.3,16.556952]
[1673470291363,45.68888505,1342.6,1342.3,24.073842]
[1673470291364,40.73552837,1342.6,1342.3,24.073842]
[1673470291585,9.96952837,1342.6,1342.3,16.623952]
[1673470291780,17.55647284,1342.6,1342.3,16.623952]
[1673470291991,1.11354906,1342.4,1342.3,1.724172]
[1673470292228,1.11354906,1342.4,1342.3,9.106992]
[1673470292448,23.57135514,1342.6,1342.3,9.106992]
[1673470292449,1.11354906,1342.5,1342.3,16.623882]
[1673470292607,1.11354906,1342.5,1342.4,1.6623882]
[1673470293179,1.11354906,1342.5,1342.4,9.1117282]
[1673470293355,2.78358354,1342.5,1342.4,1.7293882]
[1673470293557,2.78358354,1342.5,1342.3,9.173992]
[1673470293971,2.78358354,1342.5,1342.3,16.623882]
[1673470294224,2.78358354,1342.5,1342.3,24.073772]
[1673470294400,2.78358354,1342.5,1342.3,9.173992]
[1673470294610,2.78358354,1342.5,1342.3,16.623882]
[1673470295228,2.78358354,1342.5,1342.3,9.173942]
[1673470295969,2.78358354,1342.5,1342.3,16.623832]
[1673470296216,2.78358354,1342.5,1342.4,1.6623832]
[1673470296391,1.11354906,1342.5,1342.4,9.1117232]
[1673470296612,1.11354906,1342.5,1342.4,24.0774032]
[1673470296817,1.06354906,1342.5,1342.4,24.0774032]
[1673470297031,1.06354906,1342.5,1342.4,16.6280632]
[1673470297597,1.06354906,1342.5,1342.4,1.7293832]
[1673470297772,1.06354906,1342.5,1342.4,1.6623832]
[1673470299859,1.06354906,1342.5,1342.3,24.073422]
[1673470300124,2.73358354,1342.5,1342.3,0.067]
[1673470300310,10.18248354,1342.5,1342.2,16.63814]
[1673470300513,3.0,1342.4,1342.2,0.067]
[1673470300723,3.0,1342.4,1342.1,41.08222]
[1673470300943,3.0,1342.4,1342.2,7.4504]
[1673470301178,24.22173895,1342.5,1342.2,0.067]
[1673470301328,24.01860448,1342.4,1342.1,17.073]
[1673470302036,24.01860448,1342.4,1342.1,0.067]
[1673470302323,24.01860448,1342.4,1342.0,9.18451]
[1673470302712,16.56884448,1342.4,1342.0,16.63607]
[1673470302909,16.56884448,1342.4,1342.1,1.663607]
[1673470303118,16.56884448,1342.4,1342.0,16.63607]
[1673470303355,20.51897505,1342.4,1342.0,24.08763]
[1673470303566,7.4636034,1342.3,1342.0,0.067]
[1673470303757,27.98367682,1342.3,1341.9,31.89112]
[1673470303968,3.0,1342.2,1341.9,28.17722722]
[1673470304211,10.4506,1342.2,1341.9,35.62934722]
[1673470304373,10.4506,1342.2,1341.9,11.25652722]
[1673470304590,10.4506,1342.2,1341.9,7.51862]
[1673470304816,7.4506,1342.2,1341.9,7.51862]
[1673470305004,7.4506,1342.2,1341.9,14.97074]
[1673470305215,7.4506,1342.2,1341.9,7.51862]
[1673470305852,9.9506,1342.2,1341.9,7.51862]
[1673470306068,7.4506,1342.2,1341.9,7.51862]
[1673470306311,7.4506,1342.2,1341.9,10.19824067]
[1673470306906,8.56420232,1342.2,1341.9,17.65036067]
[1673470307324,8.56420232,1342.2,1341.9,0.067]
[1673470307325,23.46525232,1342.2,1341.9,0.067]
[1673470307539,23.46525232,1342.2,1341.8,26.79712668]
[1673470308803,16.01465232,1342.2,1341.8,30.74925832]
[1673470308998,8.56406232,1342.2,1341.8,31.86421775]
[1673470309207,8.56406232,1342.2,1341.9,3.18642178]
[1673470309469,8.56406232,1342.2,1341.9,18.09042178]
[1673470309628,8.56406232,1342.2,1341.9,18.15742178]
[1673470309975,1.11360232,1342.2,1341.9,18.15742178]
[1673470310187,8.56414232,1342.2,1341.9,18.15742178]
[1673470310397,1.11360232,1342.2,1341.9,18.15742178]
[1673470311253,8.56420232,1342.2,1341.9,18.15742178]
[1673470311477,28.1352868,1342.2,1341.9,3.25342178]
[1673470311624,30.0940157,1342.2,1341.8,19.34471668]
[1673470311838,28.1352868,1342.2,1341.8,26.79721668]
[1673470312078,1.11360232,1342.1,1341.8,26.79721668]
[1673470313725,8.56462232,1342.1,1341.8,26.79721668]
[1673470314401,8.56462232,1342.1,1341.8,17.68871668]
[1673470314778,8.56462232,1342.1,1341.8,10.23621668]
[1673470315223,1.11360232,1342.1,1341.9,0.93394415]
[1673470315439,1.11360232,1342.1,1341.9,8.38586415]
[1673470315656,1.11360232,1342.1,1341.9,1.00094415]
[1673470315982,1.11360232,1342.1,1341.9,0.93394415]
[1673470316152,8.56463232,1342.1,1341.9,0.93394415]
[1673470316600,1.11360232,1342.1,1341.9,8.38602415]
[1673470316777,25.34019127,1342.2,1341.9,8.45302415]
[1673470316993,25.1355768,1342.2,1341.9,8.45302415]
[1673470317198,1.11360232,1342.1,1341.9,8.45299415]
[1673470317640,25.2015768,1342.2,1341.9,8.45299415]
[1673470317828,1.11360232,1342.1,1341.9,8.45299415]
[1673470318472,17.7508068,1342.2,1341.9,8.45299415]
[1673470318703,17.6848068,1342.2,1341.9,1.00094415]
[1673470318934,1.11360232,1342.1,1341.8,25.14093668]
[1673470319313,8.56461232,1342.1,1341.8,25.14093668]
[1673470320315,8.56461232,1342.1,1341.8,7.58710671]
[1673470320530,25.42880118,1342.1,1341.8,2.77362359]
[1673470320820,25.42880118,1342.1,1341.8,0.06512793]
[1673470320821,24.74196514,1342.0,1341.8,0.06512793]
[1673470320982,33.98767961,1342.0,1341.8,0.06512793]
[1673470321192,32.31764513,1342.0,1341.8,0.06512793]
[1673470321420,33.98767961,1342.0,1341.8,0.06512793]
[1673470321643,3.33593094,1341.9,1341.8,0.06512793]
[1673470322267,18.24017094,1341.9,1341.8,0.06512793]
[1673470322597,19.35377326,1341.9,1341.8,0.06512793]
[1673470322810,18.24017094,1341.9,1341.8,0.06512793]
[1673470323141,3.33593094,1341.9,1341.8,0.06512793]
[1673470323354,10.98403679,1342.0,1341.8,0.06512793]
[1673470323355,9.19041232,1342.0,1341.8,0.06512793]
[1673470323547,1.67260232,1342.0,1341.8,0.06512793]
[1673470323727,16.71461679,1342.0,1341.8,0.06512793]
[1673470323942,24.16631679,1342.0,1341.8,0.06512793]
[1673470324728,24.02770232,1342.0,1341.8,0.06512793]
[1673470325112,16.57600232,1342.0,1341.8,0.06512793]
[1673470326670,15.4624,1342.0,1341.8,0.06512793]
[1673470328806,22.9141,1342.0,1341.8,0.06512793]
[1673470328986,8.0107,1342.0,1341.8,0.06512793]
[1673470330145,0.559,1342.0,1341.8,0.06512793]
[1673470330356,8.01081,1342.0,1341.8,0.06512793]
[1673470331662,17.2712234,1342.1,1341.8,7.51778793]
[1673470331859,9.7538834,1342.1,1341.8,17.29575181]
[1673470332237,17.2049034,1342.1,1341.8,24.74842181]
[1673470332453,9.7538834,1342.1,1341.8,17.29575181]
[1673470333136,9.7558834,1342.1,1341.8,17.29275181]
[1673470333293,9.7538834,1342.1,1341.8,17.29575181]
[1673470333503,17.2049734,1342.1,1341.8,17.29575181]
[1673470334928,18.31857572,1342.1,1341.8,17.29575181]
[1673470335443,17.2049734,1342.1,1341.8,17.29575181]
[1673470336285,18.31857572,1342.1,1341.8,17.29575181]
[1673470338621,10.85390232,1342.1,1341.9,1.72957518]
[1673470338930,18.30498232,1342.1,1341.8,9.84308181]
[1673470339092,25.75606232,1342.1,1341.8,2.39042181]
[1673470339302,25.89471176,1342.1,1341.8,2.32342181]
[1673470340820,35.01582624,1342.1,1341.8,2.32342181]
[1673470343099,35.01582624,1342.1,1341.8,0.06512793]
[1673470343313,1.11360232,1341.9,1341.8,0.06512793]
[1673470343600,8.56572232,1341.9,1341.8,0.06512793]
[1673470343731,1.11360232,1341.9,1341.8,0.06512793]
[1673470343941,8.56572232,1341.9,1341.8,0.06512793]
[1673470344162,23.46996232,1341.9,1341.8,0.06512793]
[1673470344360,17.6878768,1341.9,1341.8,0.06512793]
[1673470344583,16.01784232,1341.9,1341.8,0.06512793]
[1673470344827,16.01984232,1341.9,1341.8,0.06512793]
[1673470345146,16.01784232,1341.9,1341.8,0.06512793]
[1673470345313,18.83211148,1341.9,1341.8,0.06512793]
[1673470345529,5.59790596,1341.9,1341.8,0.06512793]
[1673470345756,1.11360232,1341.9,1341.8,0.06512793]
[1673470346153,18.46450964,1342.0,1341.8,0.06512793]
[1673470346365,1.11360232,1341.9,1341.8,0.06512793]
[1673470347880,2.44726732,1342.0,1341.8,7.51779793]
[1673470347881,3.4222202,1342.0,1341.8,7.51779793]
[1673470348033,1.67260232,1342.0,1341.8,7.58479793]
[1673470348461,1.11360232,1342.0,1341.8,7.58479793]
[1673470348938,2.7836368,1342.0,1341.8,7.58479793]
[1673470349157,2.7836368,1342.0,1341.8,0.13212793]
[1673470349306,10.2352568,1342.0,1341.8,0.06512793]
[1673470349515,2.7836368,1342.0,1341.8,0.06512793]
[1673470349744,10.2352168,1342.0,1341.8,0.06512793]
[1673470349952,10.18473862,1342.0,1341.8,0.06512793]
[1673470350503,10.18473862,1342.0,1341.8,7.51773793]
[1673470350504,2.73315862,1342.0,1341.8,7.51773793]
[1673470350715,10.18473862,1342.0,1341.8,2.50191875]
[1673470350872,10.18473862,1342.0,1341.8,2.43491875]
[1673470351751,10.18473862,1342.0,1341.8,9.88758875]
[1673470351752,1.06312414,1342.0,1341.8,9.88758875]
[1673470352039,1.06312414,1342.0,1341.9,0.98875888]
[1673470354074,11.47633448,1342.1,1341.9,0.98875888]
[1673470354396,11.41033448,1342.1,1341.9,8.44087888]
[1673470354613,11.54898392,1342.1,1341.9,8.50787888]
[1673470354805,11.54898392,1342.1,1341.9,29.0256471]
[1673470354806,0.13864944,1342.1,1341.9,29.0256471]
[1673470355054,0.006,1342.2,1342.0,4.75107846]
[1673470355380,4.70946859,1342.3,1342.1,22.353]
[1673470355381,1.67003448,1342.3,1342.1,22.353]
[1673470355538,1.86489663,1342.3,1342.1,22.42]
[1673470355747,1.67003448,1342.3,1342.2,2.242]
[1673470356004,1.67003448,1342.3,1342.2,17.1429]
[1673470356224,1.67003448,1342.3,1342.2,17.2099]
[1673470356396,1.67003448,1342.3,1342.2,0.067]
[1673470356599,1.67003448,1342.3,1342.0,29.27602293]
[1673470356821,1.86489663,1342.3,1342.0,26.99449471]
[1673470357165,1.67003448,1342.3,1342.0,26.99449471]
[1673470357741,3.89570644,1342.3,1342.0,26.99449471]
[1673470358005,1.67003448,1342.2,1342.1,17.60144947]
[1673470358207,1.73603448,1342.3,1342.1,25.11944947]
[1673470358421,1.67003448,1342.3,1342.1,17.66844947]
[1673470359875,1.11444089,1342.2,1342.1,17.66844947]
[1673470360517,2.78447537,1342.3,1342.1,25.11944947]
[1673470360728,1.11444089,1342.3,1342.2,17.41284495]
[1673470360887,1.11444089,1342.3,1342.2,10.02939495]
[1673470361100,1.11444089,1342.3,1342.2,2.57894495]
[1673470361308,2.78447537,1342.3,1342.2,2.51194495]
[1673470361524,2.78447537,1342.3,1342.1,10.21744947]
[1673470361771,2.97933752,1342.3,1342.1,10.21744947]
[1673470361993,2.97933752,1342.3,1342.1,2.76644947]
[1673470362152,1.11444089,1342.2,1342.1,2.69944947]
[1673470362362,4.11444089,1342.2,1342.1,2.69944947]
[1673470362789,27.02138448,1342.2,1342.0,0.067]
[1673470362996,1.11422996,1342.1,1341.9,1.671]
[1673470363209,1.11422996,1342.1,1341.9,9.12302]
[1673470363449,5.85026444,1342.2,1341.9,16.63914]
[1673470363736,5.78426444,1342.2,1342.0,1.663914]
[1673470363941,1.11422996,1342.1,1342.0,1.663914]
[1673470364593,12.18656448,1342.2,1342.0,1.663914]
[1673470364594,1.18022996,1342.2,1342.0,24.018594]
[1673470364800,1.11422996,1342.2,1342.0,24.085594]
[1673470366725,10.23482444,1342.2,1342.0,1.730914]
[1673470366912,2.78426444,1342.2,1342.0,1.663914]
[1673470367249,2.78426444,1342.2,1342.0,9.115464]
[1673470367421,1.11422996,1342.2,1342.0,16.634024]
[1673470368251,1.11422996,1342.2,1342.0,9.182444]
[1673470368459,1.11422996,1342.2,1342.0,16.634004]
[1673470368671,2.78426444,1342.2,1342.0,16.634004]
[1673470369577,2.78426444,1342.2,1342.0,1.730914]
[1673470369758,10.23477444,1342.2,1342.0,1.663914]
[1673470370259,2.78426444,1342.2,1342.0,1.663914]
[1673470370471,2.78426444,1342.2,1342.1,0.1663914]
[1673470370472,1.11422996,1342.2,1342.1,0.1663914]
[1673470370678,1.11422996,1342.2,1342.0,24.085114]
[1673470373642,2.78426444,1342.2,1342.0,1.730914]
[1673470373866,10.23488444,1342.2,1341.9,9.18976]
[1673470374047,10.23488444,1342.2,1341.9,1.738]
[1673470374048,1.11422996,1342.1,1341.9,1.738]
[1673470374252,4.11422996,1342.1,1341.9,9.12304]